bitfinex/quotes_SOLUSD_20260305
["timestamp","ask_amount","ask_price","bid_price","bid_amount"]
[1772740351506,0.52538363,88.879,88.84,0.2]
[1772740352118,0.52538363,88.877,88.84,0.2]
[1772740353819,0.52538363,88.877,88.83,0.2]
[1772740353820,0.52538363,88.876,88.83,0.2]
[1772740354007,0.52538363,88.866,88.83,0.2]
[1772740354207,0.52538363,88.865,88.83,0.2]
[1772740354427,0.52538363,88.865,88.8,0.2]
[1772740354428,0.52538363,88.839,88.8,0.2]
[1772740354631,0.52538363,88.829,88.79,0.1]
[1772740355920,0.52538363,88.808,88.755,0.52836844]
[1772740356229,0.52538363,88.797,88.755,0.52836844]
[1772740356926,0.52538363,88.797,88.751,11.26743703]
[1772740357229,0.52538363,88.797,88.752,0.52836844]
[1772740357406,0.52538363,88.797,88.746,0.52836844]
[1772740357741,0.52538363,88.797,88.75,0.62836844]
[1772740358227,0.52538363,88.795,88.751,0.52836844]
[1772740358618,56.29857662,88.813,88.751,0.52836844]
[1772740358619,11.26116362,88.801,88.751,0.52836844]
[1772740358936,0.52538363,88.8,88.751,0.52836844]
[1772740359135,0.52538363,88.8,88.75,39.53654274]
[1772740359136,0.52538363,88.789,88.75,0.1]
[1772740359341,0.52538363,88.769,88.74,1e-08]
[1772740360440,11.26532083,88.768,88.741,0.52836844]
[1772740361627,11.26354441,88.782,88.741,0.52836844]
[1772740361826,0.52538363,88.781,88.741,0.52836844]
[1772740362445,11.26138686,88.8,88.744,0.52836844]
[1772740363544,11.26138686,88.8,88.745,4.82477569]
[1772740363720,11.26065236,88.805,88.747,0.52836844]
[1772740364043,11.26065236,88.805,88.755,0.52836844]
[1772740364336,11.25971526,88.813,88.755,0.52836844]
[1772740364937,0.52538363,88.812,88.757,0.52836844]
[1772740365116,0.52538363,88.812,88.758,0.52836844]
[1772740365637,0.52538363,88.825,88.758,0.52836844]
[1772740366517,0.52538363,88.834,88.765,0.52836844]
[1772740366716,0.52538363,88.834,88.768,0.52836844]
[1772740366929,11.25707788,88.833,88.769,39.42817875]
[1772740367120,0.52538363,88.832,88.773,0.52836844]
[1772740370026,0.52538363,88.83,88.776,0.52836844]
[1772740372116,0.52538363,88.83,88.775,0.28432314]
[1772740372117,0.52538363,88.828,88.779,0.52836844]
[1772740374833,0.52538363,88.826,88.781,0.52836844]
[1772740376827,11.25809175,88.825,88.783,0.52836844]
[1772740379258,0.52538363,88.826,88.785,0.52836844]
[1772740379459,11.25809175,88.825,88.785,0.52836844]
[1772740379963,0.52538363,88.824,88.785,0.52836844]
[1772740381460,0.51294086,88.822,88.776,0.50401213]
[1772740381759,95.6959346,88.823,88.742,0.50401213]
[1772740381760,0.51294086,88.799,88.742,0.50401213]
[1772740383261,0.51294086,88.797,88.744,0.50401213]
[1772740383564,0.51294086,88.769,88.74,1e-08]
[1772740385338,0.51294086,88.767,88.74,1e-08]
[1772740385542,0.51294086,88.766,88.74,1e-08]
[1772740385744,0.51294086,88.766,88.73,1e-08]
[1772740387556,0.51294086,88.763,88.73,1e-08]
[1772740388758,0.51294086,88.761,88.73,1e-08]
[1772740390167,0.51294086,88.761,88.73,0.50401214]
[1772740390547,0.51294086,88.761,88.73,1e-08]
[1772740390763,0.51294086,88.759,88.73,1e-08]
[1772740392664,0.51294086,88.749,88.72,1e-08]
[1772740392859,0.51294086,88.747,88.72,0.50401214]
[1772740393055,0.28432314,88.774,88.72,1e-08]
[1772740393262,39.42595804,88.774,88.72,1e-08]
[1772740393450,11.26062721,88.805,88.724,0.50401213]
[1772740393651,39.41219525,88.805,88.734,0.50401213]
[1772740394164,0.28432314,88.804,88.734,0.50401213]
[1772740394556,39.41219525,88.805,88.734,0.50401213]
[1772740394770,39.4082014,88.814,88.737,0.50401213]
[1772740395158,0.07424071,88.812,88.737,0.50401213]
[1772740395361,39.4082014,88.814,88.744,0.50401213]
[1772740395674,0.07448726,88.813,88.744,0.50401213]
[1772740397068,0.07448726,88.813,88.747,0.50401213]
[1772740399165,0.07448726,88.813,88.75,0.50401213]
[1772740399575,50.8936308,88.82,88.75,0.50401213]
[1772740399576,0.07544804,88.805,88.75,0.50401213]
[1772740399880,0.51294086,88.776,88.721,11.27128864]
[1772740400556,0.51294086,88.776,88.721,39.44951025]
[1772740401076,0.51294086,88.776,88.721,11.27128864]
[1772740401277,0.51294086,88.774,88.712,0.28432314]
[1772740401480,0.51294086,88.774,88.711,39.45395722]
[1772740401777,0.51294086,88.774,88.712,0.50401213]
[1772740401962,0.51294086,88.774,88.713,0.50401213]
[1772740403456,0.51294086,88.772,88.716,0.50401213]
[1772740404964,0.51294086,88.77,88.719,0.50401213]
[1772740405882,11.26494012,88.771,88.719,0.50401213]
[1772740406181,11.26433814,88.776,88.719,0.50401213]
[1772740407076,11.7775003,88.774,88.722,0.50401213]
[1772740407780,11.26455944,88.774,88.722,0.50401213]
[1772740408159,0.51900226,88.794,88.731,0.5177039]
[1772740408377,0.51900226,88.794,88.737,0.5177039]
[1772740409572,11.26214904,88.793,88.74,0.5177039]
[1772740410764,0.53882743,88.802,88.744,0.53417886]
[1772740411280,0.53882743,88.818,88.756,0.53417886]
[1772740411482,0.53882743,88.817,88.756,0.53417886]
[1772740411877,11.79806,88.816,88.759,0.53417886]
[1772740412469,11.25923257,88.816,88.759,0.53417886]
[1772740412668,0.53882743,88.825,88.766,0.53417886]
[1772740412669,11.25821849,88.824,88.766,0.53417886]
[1772740412966,3.69383402,88.855,88.775,0.53417886]
[1772740412967,11.25765235,88.829,88.775,0.53417886]
[1772740414576,0.53882743,88.829,88.777,0.28432314]
[1772740414764,0.53882743,88.829,88.778,0.53417886]
[1772740416987,0.53882743,88.827,88.78,0.53417886]
[1772740417896,0.53882743,88.819,88.772,0.53417886]
[1772740418069,0.53882743,88.819,88.774,0.53417886]
[1772740418269,0.53882743,88.819,88.775,0.53417886]
[1772740419172,0.53882743,88.817,88.778,0.53417886]
[1772740421599,11.25887195,88.819,88.78,0.53417886]
[1772740424292,0.53882743,88.821,88.782,0.53417886]
[1772740427195,0.53882743,88.819,88.784,0.53417886]
[1772740429705,0.53882743,88.817,88.786,0.53417886]
[1772740430496,0.53882743,88.817,88.785,11.26316382]
[1772740431011,0.53882743,88.817,88.786,0.53417886]
[1772740432114,0.53882743,88.844,88.789,0.53417886]
[1772740432491,0.53882743,88.843,88.789,0.53417886]
[1772740432825,0.53882743,88.836,88.779,0.53417886]
[1772740434415,0.53882743,88.836,88.766,3.69383402]
[1772740434416,0.53882743,88.834,88.721,102.0]
[1772740434600,0.53882743,88.808,88.758,39.43306518]
[1772740436394,0.53882743,88.806,88.76,0.53417886]
[1772740437818,11.26062721,88.805,88.763,0.53417886]
[1772740438315,0.53882743,88.806,88.763,0.53417886]
[1772740438521,0.53882743,88.813,88.763,0.53417886]
[1772740438717,11.25973967,88.812,88.763,0.53417886]
[1772740438902,0.53882743,88.811,88.763,0.53417886]
[1772740440731,0.50491788,88.809,88.766,0.51069058]
[1772740442199,0.50491788,88.809,88.768,0.51069058]
[1772740444030,0.50491788,88.807,88.77,0.51069058]
[1772740445594,0.50491788,88.816,88.771,0.51069058]
[1772740445800,0.50491788,88.852,88.775,0.51069058]
[1772740446003,0.50491788,88.851,88.776,0.51069058]
[1772740447400,0.50491788,88.848,88.776,0.51069058]
[1772740447802,0.50491788,88.839,88.776,0.51069058]
[1772740448319,0.50491788,88.837,88.779,0.51069058]
[1772740450817,0.50491788,88.842,88.79,0.51069058]
[1772740451009,0.50491788,88.842,88.795,0.51069058]
[1772740451212,0.50491788,88.842,88.798,0.51069058]
[1772740452906,0.50491788,88.84,88.801,0.51069058]
[1772740454212,0.50491788,88.838,88.804,0.51069058]
[1772740456716,0.50491788,88.836,88.805,11.26062721]
[1772740457424,0.50491788,88.829,88.78,0.51069058]
[1772740457628,0.50491788,88.819,88.773,0.51069058]
[1772740457928,0.50491788,88.819,88.774,0.51069058]
[1772740458128,39.39799857,88.837,88.774,0.51069058]
[1772740458129,0.50491788,88.827,88.774,0.51069058]
[1772740458308,0.50491788,88.827,88.774,0.65285215]
[1772740458516,0.50491788,88.827,88.775,0.51069058]
[1772740459024,39.39799857,88.837,88.778,0.51069058]
[1772740459025,0.50491788,88.825,88.778,0.51069058]
[1772740459919,0.50491788,88.836,88.778,0.51069058]
[1772740460113,0.50491788,88.835,88.778,0.51069058]
[1772740461834,11.25695116,88.834,88.784,0.51069058]
[1772740462013,11.76186904,88.834,88.784,0.51069058]
[1772740462332,0.50491788,88.833,88.784,0.51069058]
[1772740463116,0.50491788,88.833,88.785,102.0]
[1772740463450,0.50491788,88.833,88.786,0.51069058]
[1772740464910,0.50491788,88.831,88.789,0.51069058]
[1772740467111,0.50491788,88.831,88.792,0.51069058]
[1772740467314,0.50491788,88.838,88.795,0.51069058]
[1772740467936,0.50491788,88.838,88.796,0.51069058]
[1772740469232,0.50491788,88.838,88.798,0.28432314]
[1772740469431,0.50491788,88.838,88.799,0.52565081]
[1772740471230,11.25657102,88.837,88.799,0.52565081]
[1772740471418,0.51150105,88.837,88.802,0.53234609]
[1772740473542,0.51150105,88.835,88.803,11.26088082]
[1772740474237,0.51150105,88.835,88.79,28.15607543]
[1772740474238,0.51150105,88.835,88.791,0.81666923]
[1772740474731,0.51150105,88.835,88.792,0.53234609]
[1772740475752,0.51150105,88.833,88.788,11.262742]
[1772740476036,39.39932907,88.834,88.78,1.01871978]
[1772740476037,0.51150105,88.828,88.78,1.01871978]
[1772740476237,0.51150105,88.819,88.78,1.01871978]
[1772740478564,0.51150105,88.817,88.78,1.01871978]
[1772740479745,0.51150105,88.809,88.76,11.26632766]
[1772740480733,0.51150105,88.807,88.76,11.26632766]
[1772740481248,0.51150105,88.807,88.761,0.53234609]
[1772740482025,0.51150105,88.799,88.741,0.53234609]
[1772740482225,0.51150105,88.798,88.741,0.53234609]
[1772740482430,0.51150105,88.789,88.741,0.53234609]
[1772740482652,0.51150105,88.787,88.742,11.26862139]
[1772740483153,0.51150105,88.787,88.734,0.53234609]
[1772740483446,0.51150105,88.769,88.723,11.27092184]
[1772740483828,0.51150105,88.769,88.723,11.80326793]
[1772740484026,0.51150105,88.769,88.725,0.53234609]
[1772740487333,0.51150105,88.769,88.728,0.53234609]
[1772740488155,3.69383402,88.805,88.727,0.28432314]
[1772740488156,0.51150105,88.781,88.731,4.82477569]
[1772740488344,0.51150105,88.781,88.735,0.53234609]
[1772740489954,0.51150105,88.781,88.738,0.53234609]
[1772740491064,0.51150105,88.779,88.738,0.53234609]
[1772740492134,0.51150105,88.777,88.739,11.26900235]
[1772740492856,0.51150105,88.777,88.734,11.2695672]
[1772740493360,0.51150105,88.777,88.717,0.53234609]
[1772740493556,4.28520246,88.77,88.723,11.27097537]
[1772740493738,0.51150105,88.769,88.723,11.27097537]
[1772740493944,0.51150105,88.759,88.714,11.27209821]
[1772740494252,0.51150105,88.757,88.707,11.27306751]
[1772740494637,0.51150105,88.757,88.706,0.82127652]
[1772740494833,0.51150105,88.757,88.71,1e-08]
[1772740494834,0.65366262,88.757,88.71,1e-08]
[1772740495061,0.51150105,88.748,88.71,1e-08]
[1772740495240,0.51150105,88.748,88.711,0.53234609]
[1772740496360,0.51150105,88.746,88.71,1e-08]
[1772740498037,0.51150105,88.746,88.71,11.27256383]
[1772740499656,0.51150105,88.744,88.71,1e-08]
[1772740500339,39.43884162,88.745,88.673,0.5617732]
[1772740500340,0.53046792,88.729,88.673,0.5617732]
[1772740500538,0.53046792,88.719,88.673,0.5617732]
[1772740500744,0.53046792,88.719,88.681,11.27637261]
[1772740500939,0.53046792,88.719,88.676,11.27690136]
[1772740501860,0.53046792,88.717,88.674,11.27726278]
[1772740503565,0.53046792,88.717,88.68,0.6617732]
[1772740503743,0.53046792,88.723,88.682,0.5617732]
[1772740503944,0.53046792,88.723,88.683,0.5617732]
[1772740504655,0.53046792,88.723,88.681,11.27637261]
[1772740504854,0.53046792,88.722,88.68,0.1]
[1772740505065,0.53046792,88.709,88.68,0.1]
[1772740505556,0.53046792,88.718,88.682,0.5617732]
[1772740505965,0.53046792,88.716,88.682,0.5617732]
[1772740506669,0.53046792,88.716,88.68,0.1]
[1772740507452,0.53046792,88.716,88.681,0.5617732]
[1772740507652,0.53046792,88.716,88.682,0.5617732]
[1772740508458,11.27205094,88.715,88.684,0.5617732]
[1772740508658,0.53046792,88.714,88.684,0.5617732]
[1772740508863,0.53046792,88.737,88.685,0.5617732]
[1772740510867,0.53046792,88.729,88.68,0.1]
[1772740511245,0.53046792,88.709,88.68,0.1]
[1772740512250,0.53046792,88.708,88.67,0.1]
[1772740512465,0.53046792,88.698,88.661,11.27891632]
[1772740512665,0.53046792,88.696,88.66,0.1]
[1772740513251,0.53046792,88.696,88.641,50.64]
[1772740513252,0.53046792,88.688,88.641,11.28146117]
[1772740513866,0.53046792,88.688,88.641,11.84323437]
[1772740514373,0.53046792,88.688,88.642,0.5617732]
[1772740514885,0.53046792,88.686,88.644,0.5617732]
[1772740515062,0.53046792,88.679,88.63,0.1]
[1772740515382,0.53046792,88.678,88.64,0.6617732]
[1772740515576,0.53046792,88.678,88.641,0.5617732]
[1772740515958,39.99510196,88.687,88.641,0.5617732]
[1772740516373,11.80607764,88.687,88.642,0.5617732]
[1772740516687,0.53046792,88.686,88.645,0.5617732]
[1772740517176,0.53046792,88.686,88.641,0.5617732]
[1772740517474,0.53046792,88.679,88.641,0.5617732]
[1772740517681,0.53046792,88.678,88.64,0.1]
[1772740517863,0.53046792,88.678,88.641,0.5617732]
[1772740518476,0.53046792,88.694,88.642,0.5617732]
[1772740518869,11.27484694,88.693,88.645,0.5617732]
[1772740519582,11.80531486,88.693,88.645,0.5617732]
[1772740519987,0.53046792,88.692,88.647,0.5617732]
[1772740520774,0.53046792,88.708,88.647,0.5617732]
[1772740521085,0.53046792,88.708,88.648,0.5617732]
[1772740521282,11.27281335,88.709,88.651,0.5617732]
[1772740521462,0.53046792,88.724,88.659,0.5617732]
[1772740521864,39.44862098,88.723,88.66,39.47665237]
[1772740522071,0.53046792,88.722,88.662,0.5617732]
[1772740523658,0.53046792,88.736,88.669,0.5617732]
[1772740524078,0.53046792,88.734,88.672,0.5617732]
[1772740524586,11.50768178,88.73,88.672,0.5617732]
[1772740524788,0.53046792,88.729,88.672,0.5617732]
[1772740526085,11.27039942,88.728,88.675,0.5617732]
[1772740526777,11.80086734,88.728,88.675,0.5617732]
[1772740526976,0.53046792,88.719,88.675,0.5617732]
[1772740527186,0.53046792,88.709,88.667,0.5617732]
[1772740527481,0.53046792,88.708,88.659,0.5617732]
[1772740528275,0.51966911,88.706,88.66,0.52248371]
[1772740530161,0.53350259,88.704,88.662,0.54811279]
[1772740530599,0.53350259,88.699,88.649,0.54811279]
[1772740530879,0.53350259,88.698,88.649,0.54811279]
[1772740531268,0.53350259,88.689,88.649,0.54811279]
[1772740531589,0.53350259,88.688,88.641,11.28140756]
[1772740531888,0.53350259,88.688,88.642,0.54811279]
[1772740532094,39.45662589,88.705,88.643,0.54811279]
[1772740532269,0.53350259,88.702,88.646,0.54811279]
[1772740532468,0.53350259,88.699,88.646,0.54811279]
[1772740532795,0.53350259,88.698,88.646,0.54811279]
[1772740533176,0.53350259,88.729,88.649,4.82477569]
[1772740533371,0.53350259,88.729,88.649,0.54811279]
[1772740533682,0.53350259,88.728,88.649,0.54811279]
[1772740534189,0.53350259,88.716,88.651,0.83243593]
[1772740534388,0.53350259,88.716,88.652,0.54811279]
[1772740535472,0.53350259,88.716,88.651,0.28432314]
[1772740535473,0.53350259,88.714,88.655,0.54811279]
[1772740537692,0.53350259,88.712,88.657,0.54811279]
[1772740538391,0.53350259,88.709,88.657,0.54811279]
[1772740538870,11.27230507,88.713,88.657,0.54811279]
[1772740539468,11.27230507,88.713,88.658,0.54811279]
[1772740539905,11.27154273,88.719,88.661,0.54811279]
[1772740542074,11.49768956,88.74,88.66,0.28432314]
[1772740542075,0.53350259,88.726,88.664,0.54811279]
[1772740544000,0.53350259,88.726,88.666,0.54811279]
[1772740544176,0.53350259,88.726,88.665,102.0]
[1772740544177,0.53350259,88.724,88.669,0.54811279]
[1772740545078,0.53350259,88.732,88.672,0.54811279]
[1772740545275,0.53350259,88.732,88.675,0.54811279]
[1772740546000,6.92004703,88.739,88.675,0.54811279]
[1772740546199,0.53350259,88.748,88.689,0.54811279]
[1772740546402,11.26798652,88.747,88.689,0.54811279]
[1772740547994,0.53350259,88.758,88.7,0.54811279]
[1772740548191,0.53350259,88.765,88.703,0.54811279]
[1772740548396,0.53350259,88.774,88.703,0.54811279]
[1772740549383,0.53350259,88.769,88.703,0.54811279]
[1772740551004,0.53350259,88.767,88.706,0.54811279]
[1772740553217,0.53350259,88.765,88.709,0.54811279]
[1772740555303,11.69768956,88.78,88.712,0.54811279]
[1772740555304,0.53350259,88.763,88.712,0.54811279]
[1772740557796,0.53350259,88.761,88.715,0.54811279]
[1772740559498,11.26545453,88.767,88.715,0.54811279]
[1772740559702,0.53350259,88.766,88.715,0.54811279]
[1772740560315,0.53792716,88.764,88.717,0.28432314]
[1772740560607,0.53792716,88.764,88.718,0.5262141]
[1772740561011,0.53792716,88.759,88.718,0.5262141]
[1772740561210,0.53792716,88.758,88.709,0.5262141]
[1772740562097,0.53792716,88.765,88.709,0.5262141]
[1772740562409,11.80362873,88.765,88.712,0.5262141]
[1772740564008,0.53792716,88.774,88.715,0.5262141]
[1772740564308,0.53792716,88.773,88.72,0.5262141]
[1772740564491,0.53792716,88.771,88.723,0.5262141]
[1772740567911,0.53792716,88.769,88.725,0.81053724]
[1772740568121,0.53792716,88.769,88.726,0.5262141]
[1772740568307,11.26506702,88.77,88.726,0.5262141]
[1772740568509,0.53792716,88.776,88.726,0.5262141]
[1772740569122,11.80227809,88.776,88.726,0.5262141]
[1772740569327,0.53792716,88.775,88.726,0.5262141]
[1772740570722,0.53792716,88.773,88.729,0.5262141]
[1772740572827,0.53792716,88.771,88.732,0.5262141]
[1772740575323,11.26506702,88.77,88.733,11.26976434]
[1772740575502,0.53792716,88.769,88.733,11.26976434]
[1772740575707,0.53792716,88.769,88.734,0.5262141]
[1772740576622,0.53792716,88.769,88.733,11.26976434]
[1772740576923,0.53792716,88.769,88.728,11.79661352]
[1772740577128,0.53792716,88.769,88.729,0.5262141]
[1772740577624,0.53792716,88.767,88.731,0.5262141]
[1772740578017,0.53792716,88.767,88.709,0.5262141]
[1772740578521,0.53792716,88.759,88.709,0.5262141]
[1772740578704,0.53792716,88.759,88.71,11.27268628]
[1772740579105,0.53792716,88.759,88.711,0.5262141]
[1772740579623,0.53792716,88.759,88.714,0.28432314]
[1772740579820,0.53792716,88.757,88.715,0.5262141]
[1772740580923,11.26659005,88.758,88.715,0.5262141]
[1772740581223,0.53792716,88.757,88.715,0.5262141]
[1772740581805,0.53792716,88.757,88.717,0.5262141]
[1772740582223,0.53792716,88.756,88.717,0.5262141]
[1772740582926,0.53792716,88.776,88.721,0.5262141]
[1772740583234,0.53792716,88.776,88.719,4.82477569]
[1772740583235,0.2,88.78,88.73,0.5262141]
[1772740583535,0.2,88.78,88.723,0.28432314]
[1772740583536,0.53792716,88.778,88.731,0.5262141]
[1772740583903,0.53792716,88.778,88.733,0.81053724]
[1772740584111,0.53792716,88.776,88.734,0.5262141]
[1772740586328,0.53792716,88.776,88.736,0.5262141]
[1772740587223,0.53792716,88.774,88.736,0.5262141]
[1772740589822,11.26392502,88.779,88.738,0.52638027]
[1772740591225,0.2,88.78,88.739,0.56516045]
[1772740591419,0.53219499,88.778,88.739,0.56516045]
[1772740592131,11.26417878,88.777,88.742,0.56516045]
[1772740592324,0.53219499,88.776,88.742,0.56516045]
[1772740593025,0.53219499,88.776,88.74,11.26887536]
[1772740595235,0.53219499,88.774,88.74,0.56516045]
[1772740595535,0.53219499,88.774,88.719,39.73472271]
[1772740595536,0.53219499,88.774,88.724,0.56516045]
[1772740597539,0.53219499,88.772,88.726,0.56516045]
[1772740601436,0.53219499,88.772,88.716,102.0]
[1772740601437,0.53219499,88.77,88.728,0.56516045]
[1772740602535,0.53219499,88.779,88.731,0.56516045]
[1772740602839,0.53219499,88.779,88.734,0.56516045]
[1772740603217,0.2,88.78,88.734,0.56516045]
[1772740604049,0.2,88.78,88.736,0.56516045]
[1772740604425,0.53219499,88.779,88.736,0.56516045]
[1772740604625,0.53219499,88.779,88.731,11.83510989]
[1772740604626,0.53219499,88.778,88.731,11.83510989]
[1772740604840,0.53219499,88.769,88.731,11.26994944]
[1772740605926,0.53219499,88.767,88.725,12.12026409]
[1772740606345,0.53219499,88.767,88.726,0.56516045]
[1772740608428,0.53219499,88.765,88.728,0.56516045]
[1772740608826,0.53219499,88.765,88.722,0.56516045]
[1772740609136,0.53219499,88.765,88.724,0.56516045]
[1772740610849,0.53219499,88.771,88.726,0.56516045]
[1772740611053,0.53219499,88.771,88.727,0.56516045]
[1772740611249,0.53219499,88.779,88.727,0.56516045]
[1772740611431,0.53219499,88.778,88.727,0.56516045]
[1772740612948,0.53219499,88.776,88.73,0.56516045]
[1772740615249,0.53219499,88.776,88.732,0.56516045]
[1772740615554,0.53219499,88.776,88.733,0.56516045]
[1772740616453,0.53219499,88.774,88.733,0.56516045]
[1772740619035,0.53219499,88.774,88.732,0.28432314]
[1772740619036,0.53219499,88.772,88.736,0.56516045]
[1772740620161,0.53219499,88.779,88.737,0.28432314]
[1772740620337,0.53219499,88.779,88.738,0.57743263]
[1772740620758,0.54873896,88.812,88.744,4.82477569]
[1772740620954,0.54873896,88.812,88.759,0.57743263]
[1772740621264,0.54873896,88.81,88.762,0.57743263]
[1772740623140,0.54873896,88.808,88.764,0.7195942]
[1772740623342,0.54873896,88.808,88.765,0.57743263]
[1772740624647,0.54873896,88.822,88.765,0.57743263]
[1772740624859,11.25803707,88.826,88.768,0.57743263]
[1772740625062,11.25803707,88.826,88.771,0.57743263]
[1772740625247,11.25803707,88.826,88.774,0.57743263]
[1772740625565,11.25751155,88.83,88.774,0.57743263]
[1772740625763,0.54873896,88.825,88.774,0.57743263]
[1772740627351,11.25842388,88.823,88.777,0.57743263]
[1772740627551,0.54873896,88.825,88.777,0.57743263]
[1772740627951,11.25827601,88.824,88.777,0.57743263]
[1772740628352,11.25827601,88.824,88.779,0.57743263]
[1772740628558,0.54873896,88.825,88.779,0.57743263]
[1772740628784,11.80685988,88.825,88.779,0.57743263]
[1772740628985,0.74873896,88.82,88.779,0.57743263]
[1772740629909,0.2,88.82,88.782,0.57743263]
[1772740630408,0.54873896,88.819,88.782,0.57743263]
[1772740631804,0.54873896,88.817,88.784,0.28432314]
[1772740631978,0.54873896,88.817,88.785,0.57743263]
[1772740633791,0.54873896,88.817,88.784,0.28432314]
[1772740634000,0.54873896,88.817,88.778,102.57743263]
[1772740634001,0.54873896,88.815,88.779,11.26392502]
[1772740635106,0.54873896,88.815,88.771,0.57743263]
[1772740636720,0.54873896,88.813,88.763,0.57743263]
[1772740637028,0.54873896,88.813,88.761,11.26620925]
[1772740637197,0.54873896,88.809,88.761,11.26620925]
[1772740637396,0.54873896,88.809,88.761,11.84364188]
[1772740638524,0.54873896,88.807,88.762,0.57743263]
[1772740638907,0.54873896,88.807,88.747,39.43795282]
[1772740638908,0.54873896,88.807,88.755,0.57743263]
[1772740639206,0.54873896,88.807,88.747,39.43795282]
[1772740639207,0.54873896,88.798,88.747,11.26798652]
[1772740639402,0.54873896,88.798,88.747,11.84541915]
[1772740639606,0.54873896,88.798,88.748,0.57743263]
[1772740639936,0.54873896,88.798,88.738,0.57743263]
[1772740640704,0.54873896,88.796,88.74,0.57743263]
[1772740641124,0.54873896,88.796,88.741,0.57743263]
[1772740642735,0.54873896,88.794,88.743,0.86175577]
[1772740642901,0.54873896,88.794,88.744,0.57743263]
[1772740645140,0.54873896,88.792,88.746,0.57743263]
[1772740647416,0.54873896,88.79,88.748,0.57743263]
[1772740648937,0.53273731,88.797,88.749,0.53866843]
[1772740649116,0.53273731,88.804,88.751,0.53866843]
[1772740649626,0.53273731,88.802,88.754,0.53866843]
[1772740651548,0.5335761,88.8,88.757,0.54575684]
[1772740654340,0.5335761,88.798,88.759,0.54575684]
[1772740654535,0.5335761,88.798,88.758,11.26659005]
[1772740655843,0.5335761,88.798,88.759,0.54575684]
[1772740657048,0.5335761,88.796,88.761,0.54575684]
[1772740657351,0.5335761,88.796,88.76,11.26633618]
[1772740658343,0.5335761,88.794,88.756,11.26684393]
[1772740659941,0.5335761,88.792,88.756,0.54575684]
[1772740662656,0.5335761,88.79,88.757,11.26671699]
[1772740663036,0.5335761,88.79,88.757,11.81247383]
[1772740664239,0.5335761,88.788,88.74,0.54575684]
[1772740667055,0.5335761,88.786,88.742,0.54575684]
[1772740670148,4.28563917,88.78,88.738,0.54575684]
[1772740670350,0.5335761,88.779,88.738,0.54575684]
[1772740671951,0.5335761,88.777,88.74,0.54575684]
[1772740672543,11.2640519,88.778,88.74,0.54575684]
[1772740674067,0.5335761,88.778,88.742,0.54575684]
[1772740675167,0.5335761,88.784,88.742,0.54575684]
[1772740675861,0.5335761,88.784,88.743,0.54575684]
[1772740676246,0.5335761,88.782,88.746,0.54575684]
[1772740677276,11.26367128,88.781,88.747,39.43795282]
[1772740677448,0.5335761,88.78,88.748,0.54575684]
[1772740679369,0.5335761,88.778,88.729,0.54575684]
[1772740680859,0.53727807,88.776,88.731,0.54013257]
[1772740682271,0.53727807,88.776,88.713,0.28432314]
[1772740682272,0.53727807,88.759,88.724,0.54013257]
[1772740682577,0.53727807,88.759,88.718,0.54013257]
[1772740684358,0.53727807,88.764,88.72,0.54013257]
[1772740684558,0.53727807,88.771,88.721,0.54013257]
[1772740684773,4.28563917,88.79,88.723,0.28432314]
[1772740684774,11.2636156,88.782,88.723,0.28432314]
[1772740684986,11.2636156,88.782,88.731,0.54013257]
[1772740685174,0.53727807,88.785,88.731,0.54013257]
[1772740685360,0.53727807,88.783,88.731,0.54013257]
[1772740686273,0.53727807,88.781,88.733,0.54013257]
[1772740686863,0.53727807,88.781,88.734,0.54013257]
[1772740687759,11.26291795,88.787,88.734,0.54013257]
[1772740687971,11.80019602,88.787,88.734,0.54013257]
[1772740688371,0.53727807,88.786,88.736,0.54013257]
[1772740689865,0.53727807,88.784,88.738,0.54013257]
[1772740691885,0.53727807,88.782,88.74,0.54013257]
[1772740693984,0.53727807,88.78,88.741,11.80888095]
[1772740694179,0.53727807,88.78,88.742,0.54013257]
[1772740696290,4.28563917,88.79,88.744,0.54013257]
[1772740696291,0.53727807,88.778,88.744,0.54013257]
[1772740698268,0.53727807,88.776,88.729,0.54013257]
[1772740698987,11.26417878,88.777,88.73,0.54013257]
[1772740699580,0.53727807,88.776,88.73,0.54013257]
[1772740700375,11.80171062,88.775,88.733,0.54013257]
[1772740700580,0.53727807,88.774,88.731,11.27001837]
[1772740700792,0.53727807,88.774,88.731,11.81015094]
[1772740701296,0.53727807,88.769,88.731,11.81015094]
[1772740702771,0.53727807,88.767,88.731,11.81015094]
[1772740703791,0.53727807,88.765,88.732,0.54013257]
[1772740705403,0.53727807,88.765,88.709,0.54013257]
[1772740706708,0.53727807,88.763,88.712,0.54013257]
[1772740709493,0.50865092,88.761,88.715,0.52719571]
[1772740709695,56.31749822,88.783,88.715,0.52719571]
[1772740709696,0.50865092,88.774,88.715,0.52719571]
[1772740711704,28.15766313,88.786,88.701,102.0]
[1772740711705,0.53078887,88.795,88.72,0.50171736]
[1772740711884,28.15473844,88.795,88.723,0.50171736]
[1772740712086,0.53078887,88.794,88.723,0.50171736]
[1772740713809,0.53078887,88.792,88.726,0.50171736]
[1772740715500,0.53078887,88.792,88.729,0.50171736]
[1772740715815,4.81642804,88.79,88.732,0.50171736]